Cogmind - Beta 10.2 @@@ ROGUE MODE // 2020.12.22 @ 08:11:10 Player: Hermelin Result: Destroyed by S-10 Pest with Light Assault Rifle Performance ------------- Evolutions (0) 0 Regions Visited (2) 400 Robots Destroyed (45) 225 Value Destroyed (1120) 1120 Prototype IDs (2) 40 Alien Tech Used (0) 0 Bonus (19) 19 TOTAL SCORE: 1804 Bonus ------- High Alert Combat Kills 19 Cogmind --------- Core Integrity 0/250 Matter 279/300 Energy 265/265 System Corruption 0% Temperature Cool (0) Movement Treading (180) Ox1 Location -10/Mines Parts ------- > --- POWER (1) -------- Improved Ion Engine > --- PROPULSION (2) --- Light Treads Light Treads > --- UTILITY (2) ------ Large Storage Unit Large Storage Unit > --- WEAPON (2) ------- Light Assault Rifle Rocket Launcher > --- INVENTORY (16) --- Improved Ion Engine Light Treads Wheel Medium Storage Unit Medium Storage Unit Large Storage Unit High-capacity Matter Pod (200) Improved Signal Interpreter Propulsion Shielding Assault Rifle Assault Rifle Light Assault Rifle Light Assault Rifle Light Assault Rifle Light Assault Rifle Peak State ------------ > --- POWER ------------ Improved Ion Engine > --- PROPULSION ------- Light Treads Light Treads > --- UTILITY ---------- Large Storage Unit Large Storage Unit > --- WEAPON ----------- Light Assault Rifle Rocket Launcher > --- INVENTORY -------- Improved Ion Engine Light Treads Wheel Medium Storage Unit Medium Storage Unit Large Storage Unit High-capacity Matter Pod Improved Signal Interpreter Propulsion Shielding Assault Rifle Assault Rifle Light Assault Rifle Light Assault Rifle Light Assault Rifle Light Assault Rifle [Rating: 10] Favorites ----------- Power Improved Ion Engine Engine Improved Ion Engine Propulsion Light Treads Treads Light Treads Utility Large Storage Unit Storage Large Storage Unit Weapon Assault Rifle Ballistic Gun Assault Rifle Launcher Rocket Launcher Build | -11 -10 -10 ------- Run | Scr Mat Min Slots Evolved . | . . . Power . | . . . Propulsion . | . . . Utility . | . . . Weapon . | . . . Parts Attached 26 | 8 15 3 Power 6 | 2 3 1 Engine 6 | 2 3 1 Core . | . . . Reactor . | . . . Propulsion 7 | 2 5 . Treads 7 | 2 5 . Leg . | . . . Wheel . | . . . Hover . | . . . Flight . | . . . Utility 4 | 2 2 . Device . | . . . Storage 4 | 2 2 . Processor . | . . . Hackware . | . . . Protection . | . . . Artifact . | . . . Weapon 9 | 2 5 2 Energy Gun . | . . . Energy Cannon . | . . . Ballistic Gun 8 | 2 5 1 Ballistic Cannon . | . . . Launcher 1 | . . 1 Special Weapon . | . . . Impact Weapon . | . . . Slashing Weapon . | . . . Piercing Weapon . | . . . Special Melee Weapon . | . . . Unidentified Prototypes . | . . . Parts Lost 4 | . 2 2 Power 1 | . . 1 Propulsion 1 | . 1 . Utility . | . . . Weapon 2 | . 1 1 Highest Loss Streak 1 | . 1 1 Average Slot Usage (%) 99 | . 98 100 Engine 13 | . 13 14 Treads 27 | . 27 28 Storage 28 | . 28 28 Ballistic Gun 26 | . 27 23 Launcher 1 | . . 4 Naked Turns . | . . . Heaviest Build 44 | 15 43 44 Greatest Support 40 | 40 40 40 Greatest Overweight (x) 11 | . 11 1 Average Overweight (x) . | . . 1 Largest Inventory Capacity 16 | 8 16 16 Average Capacity 14 | 6 14 16 Most Carried 16 | 7 16 16 Average Carried 13 | 3 13 15 Final Capacity 16 | 8 16 16 Final Carried 16 | 7 16 15 Class Distribution -------------------- 100% | Mutant Dominant Class ---------------- Mutant | -10/Materials Mutant | -10/Mines Resources | -11 -10 -10 ----------- Run | Scr Mat Min Matter Collected 1169 | 292 694 183 Remotely . | . . . Salvage Created 1534 | 73 1166 295 Parts 83 | 5 60 18 Haulers Intercepted 2 | . 2 . Recyclers Shooed 1 | . 1 . Parts Field Recycled . | . . . Retrieved Matter . | . . . Parts Self-Destructed . | . . . Prevented . | . . . Kills | -11 -10 -10 ------- Run | Scr Mat Min Combat Hostiles Destroyed 32 | . 25 7 Guns 30 | . 24 6 AOE 2 | . 1 1 Classes Destroyed 8 | 2 5 1 Worker 2 | 1 1 . Builder 2 | . . 2 Hauler 2 | . 2 . Recycler 2 | 1 1 . Operator 3 | . 3 . Watcher 2 | . 2 . Swarmer 7 | . 6 1 Grunt 25 | . 19 6 Best Kill Streak 5 | 1 5 3 Combat Bots Only 3 | . 3 2 Max Kills in Single Turn 3 | 1 3 3 Gunslinging 1 | . 1 . Exploded 1 | . 1 1 Melee . | . . . Uniques/NPCs Destroyed . | . . . Combat | -11 -10 -10 -------- Run | Scr Mat Min Damage Taken 1321 | . 794 527 Core 255 | . 149 106 Absorbed by Shields . | . . . Core Remaining (%) 100 | 100 . . Volleys Fired 145 | 5 101 39 Largest 2 | 2 2 2 Hottest 40 | 40 40 40 Shots Fired 289 | 10 202 77 Gun 288 | 10 202 76 Cannon . | . . . Launcher 1 | . . 1 Special . | . . . Kinetic 288 | 10 202 76 Thermal . | . . . Explosive 1 | . . 1 Electromagnetic . | . . . Robot Hit Streak 11 | 3 11 8 Robot Miss Streak 5 | 1 5 2 Penetration Max . | . . . Secondary Targets 9 | . 6 3 Max Gunslinging Chain 1 | . 1 1 Shots Hit Robots 185 | 7 121 57 Core Hits 86 | 5 57 24 Critical Hits 1 | . . 1 Critical Kills . | . . . Critical Parts Destroyed 1 | . . 1 Melee Attacks . | . . . Impact . | . . . Slashing . | . . . Piercing . | . . . Sneak Attacks . | . . . Combat Hostiles . | . . . Follow-up Attacks . | . . . Damage Inflicted 2430 | 62 1699 669 Guns 1866 | 62 1361 443 Cannons . | . . . Explosions 561 | . 335 226 Melee . | . . . Ramming 3 | . 3 . Kinetic 1866 | 62 1361 443 Thermal . | . . . Explosive 561 | . 335 226 Electromagnetic . | . . . Impact . | . . . Slashing . | . . . Piercing . | . . . Highest Corruption . | . . . Average Corruption . | . . . Corruption Purged . | . . . Overload Shots . | . . . Overflow Damage 62 | . 22 40 Projectiles . | . . . Explosions 62 | . 22 40 Melee . | . . . Knockbacks . | . . . Impact . | . . . Kinetic . | . . . Secondary . | . . . Self-Inflicted Damage 29 | . 29 . Shots 1 | . 1 . Rammed 1 | . 1 . Targets Rammed 1 | . 1 . Kicked . | . . . Crushed . | . . . Highest Temperature 52 | . 16 52 Average Temperature 11 | . 6 14 Received Heat Transfer 654 | . 363 291 Siege Activations . | . . . Robots Corrupted . | . . . Combat Hostiles . | . . . Parts Fried . | . . . Impact Corruptions . | . . . Robots Melted . | . . . Combat Hostiles . | . . . Parts Melted 1 | . . 1 Heat Transferred . | . . . Parts Sabotaged . | . . . Parts Stolen . | . . . Parts Stripped . | . . . Power Chain Reactions . | . . . Missiles Intercepted . | . . . Alert | -11 -10 -10 ------- Run | Scr Mat Min Peak Influence 448 | 10 448 290 Initial 160 | . 6 160 Average 225 | 3 266 180 Maximum Alert Level 2 | . 2 1 Low Security (%) 43 | 100 34 50 Level 1 38 | . 37 49 Level 2 18 | . 27 . Level 3 . | . . . Level 4 . | . . . Level 5 . | . . . High Security . | . . . Max Security . | . . . Squads Dispatched 8 | . 8 . Investigation 4 | . 4 . Extermination . | . . . Reinforcement 4 | . 4 . Assault . | . . . Garrison . | . . . Intercept . | . . . Construction Impeded . | . . . Haulers Reinforced . | . . . Stealth | -11 -10 -10 --------- Run | Scr Mat Min Distress Signals 2 | . 2 . Communications Jammed . | . . . Distress Signals . | . . . Times Spotted 50 | . 41 9 Peak Tracking Total 5 | . 5 3 Tactical Retreats . | . . . Traps | -11 -10 -10 ------- Run | Scr Mat Min Traps Triggered 4 | . 4 . Indirectly . | . . . Trap Hack Attempts . | . . . Triggered . | . . . Disarmed . | . . . Reprogrammed 5 | . 5 . Reused 2 | . 2 . Traps Extracted . | . . . Installed . | . . . Triggered 2 | . 2 . Machines | -11 -10 -10 ---------- Run | Scr Mat Min Machines Disabled 4 | . 4 . Max in Single Turn 2 | . 2 . Machines Sabotaged . | . . . Garrisons Compromised . | . . . Overloaded Fab Kills . | . . . Fab Network Shutdowns . | . . . Hacking | -11 -10 -10 --------- Run | Scr Mat Min Machines Accessed 7 | . 7 . Terminals 4 | . 4 . Fabricators . | . . . Repair Stations 1 | . 1 . Recycling Units 2 | . 2 . Scanalyzers . | . . . Garrison Access . | . . . Total Hacks 22 | . 22 . Successful 13 | . 13 . Failed 9 | . 9 . Catastrophic 2 | . 2 . Database Lockouts . | . . . Manual 12 | . 12 . Terminals 12 | . 12 . Fabricators . | . . . Repair Stations 2 | . 2 . Recycling Units 8 | . 8 . Scanalyzers . | . . . Garrison Access . | . . . Terminal Hacks 4 | . 4 . Robot Analysis 2 | . 2 . Prototype ID Bank 1 | . 1 . Reprogram Traps 1 | . 1 . Fabricator Hacks . | . . . Repair Station Hacks 2 | . 2 . Scan Component 1 | . 1 . Repair 1 | . 1 . Recycling Unit Hacks 4 | . 4 . Process 1 | . 1 . Report Inventory 2 | . 2 . Retrieve Matter 1 | . 1 . Scanalyzer . | . . . Garrison Access Hacks . | . . . Unauthorized Hacks 3 | . 3 . Terminals 2 | . 2 . Track 1 | . 1 . Botnet 1 | . 1 . Fabricators . | . . . Repair Stations . | . . . Recycling Units 1 | . 1 . Tunnel 1 | . 1 . Scanalyzers . | . . . Garrison Access . | . . . Data Cores Recovered . | . . . Used . | . . . Hacking Detections 6 | . 6 . Full Trace Events 2 | . 2 . Feedback Events . | . . . Feedback Blocked . | . . . Robot Schematics Acquired . | . . . Robots Built . | . . . Matter . | . . . Time . | . . . Total Robot Build Rating . | . . . Part Schematics Acquired . | . . . Parts Built . | . . . Matter . | . . . Time . | . . . Total Part Build Rating . | . . . Parts Repaired 1 | . 1 . Time 26 | . 26 . Parts Recycled . | . . . Recycled Matter 261 | . 261 . Retrieved Matter 433 | . 433 . Retrieved Components . | . . . Parts Scanalyzed . | . . . Part Schematics Acquired . | . . . Parts Damaged . | . . . Bothacking | -11 -10 -10 ------------ Run | Scr Mat Min Used RIF Installer . | . . . Robots Hacked . | . . . Non-combat . | . . . Combat . | . . . Robot Hacks Applied . | . . . Relay Couplers Released . | . . . Robots Rewired . | . . . Allies Hacked . | . . . Hacks Repelled . | . . . Allies | -11 -10 -10 -------- Run | Scr Mat Min Total Allies . | . . . Largest Group . | . . . Highest-Rated Group . | . . . Highest-Rated Ally . | . . . Total Orders . | . . . Ally Attacks . | . . . Total Damage . | . . . Kills . | . . . Allies Corrupted . | . . . Allies Melted . | . . . Intel | -11 -10 -10 ------- Run | Scr Mat Min Robot Analysis Total 2 | . 2 . Derelict Logs Recovered 1 | . . 1 Drone Launches . | . . . Drone Recoveries . | . . . Exploration | -11 -10 -10 ------------- Run | Scr Mat Min Turns Passed 2196 | 145 1443 608 Spaces Moved 949 | 72 602 275 Core 5 | 4 1 . Treads 944 | 68 601 275 Legs . | . . . Wheels . | . . . Hover . | . . . Flight . | . . . Fastest Speed 50 | 50 160 180 Average Speed 176 | 153 177 180 Slowest Speed 600 | 160 600 180 Overloaded Moves . | . . . Propulsion Burnouts . | . . . Robots Hopped . | . . . Cave-ins Triggered . | . . . Exploration Rate (%) 53 | 5 90 64 Regions Visited 2 Branch Regions 1 Pre-discovered Areas 1 | . 1 . Known Exits Taken . | . . . Unknown Exits Taken 2 | 1 1 . Scrap Searched . | . . . Spaces Dug . | . . . Terrain Destroyed 50 | . 39 11 Melee . | . . . Projectile . | . . . AOE 50 | . 39 11 Terrain Rammed . | . . . Walls Destroyed . | . . . Machines Disabled . | . . . Actions | -11 -10 -10 --------- Run | Scr Mat Min Total 1206 | 94 787 325 Wait 50 | 4 39 7 Move 947 | 71 601 275 Hop . | . . . Pick Up 25 | 6 18 1 Fast Attach 15 | 7 8 . Attach 4 | . 2 2 Detach . | . . . Swap 7 | 1 5 1 Drop 12 | . 12 . Fire 145 | 5 101 39 Melee . | . . . Ram . | . . . Kick . | . . . Crush 1 | . 1 . Escape Stasis . | . . . Rewire . | . . . Trap . | . . . Miscellaneous . | . . . Route ------- -11/Scrapyard -10/Materials (discovered 4 exits: [*Mat x2] / [*Min x2]) -10/Mines (discovered 1 exit: [*Mat]) History --------- Turn | Location | Event 16 | -11/Scrapyard | Discovered new exit (range 15) 146 | -11/Scrapyard | Entered Materials 301 | -10/Materials | Build established: Mutant 441 | -10/Materials | Discovered new exit (range 13) 865 | -10/Materials | Discovered new exit (range 15) 1052 | -10/Materials | Core integrity fell below 50% 1209 | -10/Materials | Discovered new exit (range 16) 1404 | -10/Materials | Repaired Lgt. Treads 1481 | -10/Materials | Discovered new exit (range 15) 1589 | -10/Materials | Entered Mines 1744 | -10/Mines | Received a Rocket Launcher from a helpful Derelict 1850 | -10/Mines | Core integrity fell below 20% 2093 | -10/Mines | Learned Materials stockpile data 2192 | -10/Mines | Discovered new exit (range 11) 2197 | -10/Mines | Destroyed by S-10 Pest with Light Assault Rifle Last Messages --------------- 01771_ U-05 Engineer lays Concrete. 01777_ G-47 Trooper destroyed. 01780_ Acquired 30 matter. 01787_ Acquired Rocket Launcher. 01807_ K-01 Serf collects debris. 01841_ Core Extractor disabled. 01856_ G-34 Mercenary destroyed. 01856_ Switching to secondary target: G-47 Trooper. 01859_ G-47 Trooper suffers critical hit. 01859_ Destroyed Imp. Heat Sink. 01862_ Core Extractor disabled. 01875_ Lgt. Nuclear Core melted. 01875_ G-47 Trooper destroyed. 01883_ Acquired 30 matter. 02093_ Acquired derelict log, extracted data. Data stored: Materials stockpile data. 02192_ EXIT=FOUND 02196_ S-10 Pest destroyed. 02196_ Destroyed Flight Unit. 02196_ U-05 Engineer destroyed. Map ----- +----------------------------------------------------+ | ?????????????????????????????????????????????????? | | ?????????????????????????????????????????????????? | | ?????????????????????????????????????????????????? | | ?????????????????????????????????????????????????? | | ?????????????????????????????????????############# | | ?????????????????????????????????????# | | ?????????????????????????????????????# """ """ """ | | ?????????????????????????????????????# """ """ """ | | ?????????????????????????????????????# """ """ """ | | ?????????????????????????????????????# | | ?????????????????????????????????????# """ """ """ | | ?????????????????????????????????????# """ """ """ | | ?????????????????????????????????????# """ """ """ | | ?????????????????????????????????????# | | ????????????????????????????##???????####### ##### | | ???????????????????????????? ##????????????# #???? | | ??????????????????????????? ###??????????# #???? | | ??????????????????????????? #??????????# #?### | | ??????????????????????????? ???????????# ### | | ??????????????????????????? ?????????#### ## | | ??????????????????????????# ??????????# ## | | ??????????? ????????????? #??????????# #### # | | ??????????? |% ?????????# #??????????# ### ## | | ?????????? * ####### ##?????????# ## ##? | | ?????????????# <%[ s ##????????# ## ##?? | | ??????????????# |%s @ ##??#?#??# ## #??? | | ??????????????# ! ### """ #??# #??# ### #??? | | ???????????????????????# """ #??# #??# #?# #??? | | ???????????????????????# """ ##??# #??# #?# #??? | | ???????????????????????## #?### #### #?# #??? | | ????????????????????????### ##?# ## #?# #??? | | ????????????????????######## #??# ## ### #??? | | ?????????????????# #??# """ ## #??? | | ????????????????????######## #### """ #####??? | | ???????????????????????????# """ #??????? | | ???????????????????????????# r#### ####??????? | | ????????????????????????? ??### ##?????????? | | ????????????????????????###### #???#% #??????????? | | ?????????????????????????????# #???# ###????????? | | ????????????????????????????## #???# ##???????? | | ???????????????????????????## #???# ###?????? | | ???????????????????????????# #?### ##????? | | ???????????????????????????# ## #????? | | ???????????????????????????# ###### | | ???????????????????????????# | | ???????????????????????????# #### ######## | | ??????????????????????????## """ #??####??????? | | ????????????????????# ##### """ #######??????? | | ????????????????????# """ #??????? | | ?????????????????????????## #### #??????? | +----------------------------------------------------+ Best States ------------- Heat Dissipation 25 Energy Generation 12 Energy Capacity 265 Matter Stores 300 Matter Capacity 300 Sight Range 16 Terrain Scan Density 10 Evasion (%) 40 Recoil Reduction 2 Item Schematics ----------------- None Robot Schematics ------------------ None Fabricated ------------ Nothing Alien Tech Used ----------------- None Achievements -------------- None Challenges ------------ None Game ------ Seed BladeHackingSource Manual? 0 Play Time 00:16:44 Cumulative 433.6 hours Start 2020.12.22 @ 07:56:24 End 2020.12.22 @ 08:11:10 Sessions 1 Manual Loads 0 Difficulty Rogue Special Mode None Game No. 164 Rogue 161 Adventurer 3 Explorer 0 Win Type - Total 8 Types 5/1/0/1/0/1/0/0/0 Lore% 91 Gallery% 94 Achievement% 78 Wizard Run 0 Options --------- ASCII 0 Keyboard 0 Movement Numpad Keybinds 0 Fullscreen 1 Font 18/SmallcapsGlow Map View 76x50 Tactical HUD 1 Map Filters NONE Filters NONE Steam 1 RUN: e8dd699c-cd69-480c-aad8-27a003bdc27e